bitfinex/quotes_ETHUSD_20240722
["timestamp","ask_amount","ask_price","bid_price","bid_amount"]
[1721674873696,3.02095,3475.9,3475.4,2.4317]
[1721674873896,2.87705,3475.8,3475.4,2.4317]
[1721674874196,0.144,3475.9,3475.4,2.4317]
[1721674874197,3.02098,3475.9,3475.4,5.30905]
[1721674874408,0.144,3475.9,3475.4,5.30905]
[1721674874634,3.02098,3475.9,3475.4,5.30905]
[1721674875298,0.144,3475.9,3475.7,2.3149]
[1721674876810,3.02095,3475.9,3475.7,2.3149]
[1721674877441,0.144,3475.9,3475.7,2.3149]
[1721674878527,0.144,3475.9,3475.8,5.75406]
[1721674878721,0.144,3475.9,3475.8,11.10459]
[1721674878925,0.144,3475.9,3475.8,12.502773]
[1721674879433,0.144,3475.9,3475.8,9.625743]
[1721674880321,0.144,3475.9,3475.8,2.4735]
[1721674880641,0.144,3475.9,3475.4,5.12751]
[1721674880808,2.87703,3475.8,3475.4,2.2502]
[1721674883032,0.144,3475.9,3475.5,2.87722]
[1721674883246,0.144,3475.9,3475.4,2.2502]
[1721674883451,3.021,3475.9,3475.4,2.2502]
[1721674883619,3.021,3475.9,3475.4,5.12752]
[1721674883812,5.89801,3475.9,3475.4,5.12752]
[1721674884155,2.87706,3475.8,3475.4,2.2502]
[1721674884312,2.87712,3475.7,3475.1,12.69576]
[1721674884509,2.87712,3475.7,3475.1,8.077111]
[1721674884713,2.87712,3475.7,3475.1,5.29574]
[1721674884962,5.898,3475.9,3475.3,2.87744]
[1721674885129,3.02097,3475.9,3475.3,2.87744]
[1721674885514,0.144,3475.9,3475.5,2.87728]
[1721674885765,0.144,3475.9,3475.7,2.87709]
[1721674885956,0.144,3475.9,3475.5,5.75442]
[1721674886246,0.144,3475.9,3475.6,3.452632]
[1721674886460,0.144,3475.9,3475.6,0.575442]
[1721674886615,0.144,3475.9,3475.7,2.87705]
[1721674886811,0.144,3475.9,3475.7,5.7541]
[1721674887056,0.144,3475.9,3475.6,2.87719]
[1721674888149,0.144,3475.9,3475.6,5.75433]
[1721674888328,0.144,3475.9,3475.6,2.87714]
[1721674889052,0.144,3475.9,3475.4,2.87731]
[1721674889053,0.144,3475.9,3475.5,2.87727]
[1721674889916,0.144,3475.9,3475.6,2.87719]
[1721674890812,3.02095,3475.9,3475.2,2.87748]
[1721674891021,3.02095,3475.9,3475.4,2.87734]
[1721674891568,3.02095,3475.9,3475.1,9.8182]
[1721674891569,2.8772,3475.6,3475.1,9.8182]
[1721674892243,2.87737,3475.4,3475.1,7.4]
[1721674892564,2.87753,3475.2,3474.7,2.87789]
[1721674892976,2.87714,3475.7,3474.6,10.27798]
[1721674893289,2.87762,3475.1,3474.6,10.27798]
[1721674893637,2.87762,3475.1,3474.6,13.15595]
[1721674894171,2.87741,3475.4,3474.9,2.87773]
[1721674894350,3.42724,3475.6,3475.0,2.4311]
[1721674894548,3.144,3475.9,3475.3,2.87736]
[1721674894880,3.02099,3475.9,3475.3,2.87736]
[1721674895177,2.87703,3475.8,3475.3,2.87737]
[1721674895351,3.02097,3475.9,3475.4,2.87734]
[1721674895762,3.02097,3475.9,3475.7,2.87704]
[1721674895763,0.144,3475.9,3475.7,2.87704]
[1721674896054,0.144,3475.9,3475.8,3.164734]
[1721674896738,0.144,3475.9,3475.8,0.287704]
[1721674897358,0.144,3475.9,3475.8,3.164734]
[1721674897876,0.144,3475.9,3475.8,0.287704]
[1721674899743,0.144,3475.9,3475.8,3.164734]
[1721674900172,0.144,3475.9,3475.8,0.287704]
[1721674900343,0.144,3475.9,3475.6,5.30822]
[1721674901279,0.144,3475.9,3475.7,2.87707]
[1721674901584,0.144,3475.9,3475.6,5.30828]
[1721674902283,0.144,3475.9,3475.6,2.4311]
[1721674902487,3.02095,3475.9,3475.4,2.87736]
[1721674903198,3.02095,3475.9,3475.3,2.3276]
[1721674903199,2.87737,3475.4,3474.9,2.4902]
[1721674903346,2.87737,3475.4,3474.9,5.36793]
[1721674904985,5.75447,3475.6,3475.0,2.87768]
[1721674905146,3.42711,3475.8,3475.0,2.87768]
[1721674905347,3.42709,3475.8,3475.2,2.87747]
[1721674905691,6.30418,3475.8,3475.2,2.87747]
[1721674906283,2.87712,3475.7,3475.2,2.87747]
[1721674906456,3.02097,3475.9,3475.3,2.8774]
[1721674906457,3.02099,3475.9,3475.3,2.8774]
[1721674906657,3.02096,3475.9,3475.4,2.87736]
[1721674907601,3.02096,3475.9,3475.2,2.87745]
[1721674907602,2.87703,3475.8,3475.2,2.87745]
[1721674907900,2.87703,3475.8,3475.3,2.8774]
[1721674908705,2.87703,3475.8,3475.4,2.87736]
[1721674909370,3.02095,3475.9,3475.4,2.87736]
[1721674911301,3.02095,3475.9,3475.4,2.8773]
[1721674911461,0.144,3475.9,3475.6,2.87715]
[1721674911666,0.144,3475.9,3475.8,5.75406]
[1721674913619,0.144,3475.9,3475.8,8.63109]
[1721674914918,0.144,3475.9,3475.8,14.00937317]
[1721674915101,0.144,3475.9,3475.8,17.00669574]
[1721674915282,0.144,3475.9,3475.8,14.50544257]
[1721674915610,0.144,3475.9,3475.8,24.38588361]
[1721674915611,1e-08,3475.9,3475.8,24.38588361]
[1721674915967,1e-08,3475.9,3475.8,23.48194975]
[1721674916379,2.87521,3478.0,3477.4,2.87564]
[1721674916576,2.87507,3478.2,3477.5,2.87556]
[1721674916782,2.3093,3478.3,3477.5,2.87556]
[1721674916783,5.18427,3478.3,3477.7,2.87546]
[1721674916980,3.115209,3478.3,3477.8,2.87538]
[1721674917206,0.805909,3478.3,3477.8,2.87538]
[1721674917413,2.87493,3478.4,3477.6,2.87554]
[1721674917770,2.87493,3478.4,3477.8,2.87537]
[1721674918386,3.0,3478.3,3477.8,2.87537]
[1721674918589,3.0,3478.3,3478.0,2.87516]
[1721674918790,2.8748,3478.5,3476.9,5.27076]
[1721674919033,3.0,3478.4,3477.9,2.87528]
[1721674919337,5.18399,3478.7,3477.9,2.87528]
[1721674919509,5.18399,3478.7,3478.1,2.87512]
[1721674919510,2.87469,3478.7,3478.1,2.87512]
[1721674920384,2.87472,3478.6,3477.9,2.87528]
[1721674920613,2.87472,3478.6,3478.0,2.87515]
[1721674920825,2.87472,3478.6,3477.9,2.87527]
[1721674921125,0.587472,3478.6,3477.6,7.4]
[1721674921334,2.87536,3477.9,3477.6,7.4]
[1721674921515,2.87536,3477.9,3477.3,2.87578]
[1721674921691,2.87539,3477.8,3477.2,2.87586]
[1721674921886,2.87547,3477.7,3477.1,22.51595]
[1721674922094,2.87547,3477.7,3477.1,19.64]
[1721674923025,2.87559,3477.6,3477.1,19.64]
[1721674923435,3.450505,3477.8,3477.2,2.87586]
[1721674923641,3.450505,3477.8,3477.2,5.75167]
[1721674923940,5.4425,3478.3,3477.6,2.87551]
[1721674923941,2.87509,3478.2,3477.6,2.87551]
[1721674924238,2.87505,3478.2,3477.4,2.87566]
[1721674924538,5.87513,3478.1,3477.5,2.87556]
[1721674924949,2.87534,3477.9,3477.3,2.87573]
[1721674925108,2.87534,3477.9,3477.4,2.87569]
[1721674925302,3.0,3478.1,3477.5,2.8756]
[1721674925303,5.8752,3478.1,3477.5,2.8756]
[1721674925521,3.8145192,3478.0,3477.5,2.8756]
[1721674925717,2.87535,3477.9,3477.2,2.87584]
[1721674925901,2.87535,3477.9,3477.3,2.87579]
[1721674926106,2.8754,3477.8,3477.3,2.87579]
[1721674926831,3.8145192,3478.0,3477.3,2.87573]
[1721674927222,3.62107212,3477.9,3477.3,2.87573]
[1721674927616,3.62107212,3477.9,3477.4,2.8757]
[1721674927825,3.62107212,3477.9,3477.3,2.87574]
[1721674928022,3.62107212,3477.9,3477.2,2.8758]
[1721674928023,3.62107212,3477.9,3477.4,2.8757]
[1721674929233,0.74570212,3477.9,3477.4,2.87564]
[1721674929418,5.87514,3478.1,3477.5,2.87558]
[1721674929746,8.75034,3478.1,3477.5,2.87558]
[1721674929947,2.87538,3477.8,3477.3,2.87574]
[1721674930256,2.87538,3477.8,3477.1,7.4]
[1721674930257,2.87557,3477.6,3477.1,7.4]
[1721674930433,3.163177,3477.5,3477.0,2.87604]
[1721674931010,0.287557,3477.5,3477.1,2.87593]
[1721674931306,2.8755,3477.7,3477.1,2.87593]
[1721674931733,2.8755,3477.7,3477.1,3.01993]
[1721674931933,2.4505,3477.9,3477.1,0.144]
[1721674931934,2.87563,3477.5,3477.1,0.144]
[1721674932709,2.87555,3477.6,3477.1,3.01995]
[1721674932929,2.87543,3477.8,3477.1,3.01995]
[1721674932930,2.87569,3477.5,3477.1,0.144]
[1721674933630,5.75102,3477.7,3477.1,3.01991]
[1721674933824,2.87549,3477.7,3477.1,0.144]
[1721674934145,2.87563,3477.5,3477.1,0.144]
[1721674934829,0.820152,3477.6,3477.1,0.144]
[1721674935025,0.820152,3477.6,3477.1,3.01991]
[1721674935624,3.695732,3477.6,3477.1,3.01991]
[1721674936267,3.695732,3477.6,3477.2,2.87587]
[1721674936487,2.87542,3477.8,3477.3,2.87577]
[1721674936761,2.87542,3477.8,3477.1,0.144]
[1721674936762,5.87519,3478.1,3477.4,2.8757]
[1721674936976,3.0,3478.0,3477.6,2.87547]
[1721674937191,5.87527,3478.0,3477.4,2.87564]
[1721674938062,5.87527,3478.0,3477.5,2.87561]
[1721674938665,2.87532,3477.9,3477.4,2.87568]
[1721674939470,3.8146202,3477.9,3477.3,2.87579]
[1721674939777,2.87571,3477.4,3477.1,0.144]
[1721674940117,2.87555,3477.6,3477.1,0.144]
[1721674940268,2.87543,3477.8,3477.1,3.01987]
[1721674940269,2.87546,3477.7,3477.1,3.01987]
[1721674940704,3.8146702,3477.9,3477.4,2.87569]
[1721674941292,3.8146602,3477.9,3477.4,2.87569]
[1721674941693,6.6900302,3477.9,3477.4,2.87569]
[1721674941904,2.87538,3477.8,3477.4,2.87569]
[1721674942116,2.87538,3477.8,3477.3,2.87579]
[1721674942430,2.87546,3477.7,3477.2,2.87587]
[1721674943090,2.87555,3477.6,3477.2,2.87587]
[1721674943422,2.87555,3477.6,3477.1,0.144]
[1721674943423,2.87576,3477.4,3477.1,0.144]
[1721674943721,0.287576,3477.4,3477.1,0.144]
[1721674944024,2.87569,3477.5,3477.1,0.144]
[1721674944619,5.99939802,3477.8,3477.1,3.01991]
[1721674944820,5.99939802,3477.8,3477.2,2.87586]
[1721674945019,3.55689802,3477.8,3477.2,2.87586]
[1721674945317,3.55689802,3477.8,3477.3,2.87579]
[1721674945537,3.0,3478.0,3477.3,2.87579]
[1721674945686,2.87529,3477.9,3477.5,2.87562]
[1721674945883,2.87529,3477.9,3477.4,2.87571]
[1721674946522,2.87529,3477.9,3477.1,0.144]
[1721674946523,5.31768,3478.1,3477.1,0.144]
[1721674946682,2.87531,3477.9,3477.4,2.87566]
[1721674947121,2.87522,3478.0,3477.6,2.87554]
[1721674947342,2.87522,3478.0,3477.5,2.87562]
[1721674947682,0.7012312,3478.3,3477.2,2.87581]
[1721674947925,2.87524,3478.0,3477.4,2.8757]
[1721674948078,2.87528,3478.0,3477.4,2.8757]
[1721674948285,0.64517012,3478.0,3477.4,2.8757]
[1721674948489,3.64517012,3478.0,3477.4,2.8757]
[1721674948690,2.87535,3477.9,3477.4,2.8757]
[1721674949231,2.87535,3477.9,3477.4,5.75135]
[1721674949395,2.87535,3477.9,3477.4,2.87565]
[1721674950218,5.75072,3477.9,3477.4,2.87565]
[1721674950428,2.87535,3477.9,3477.4,2.87565]
[1721674950728,3.81487801,3477.9,3477.2,2.87581]
[1721674950949,2.87559,3477.6,3477.1,3.01994]
[1721674951128,2.87559,3477.6,3477.1,3.01991]
[1721674951342,5.22063,3477.8,3477.3,2.87577]
[1721674951645,5.22063,3477.8,3477.1,3.01989]
[1721674951959,2.87554,3477.6,3477.2,2.87584]
[1721674952171,2.87546,3477.7,3477.2,2.87584]
[1721674953823,2.87563,3477.5,3477.1,0.144]
[1721674954455,5.75102,3477.7,3477.1,3.01991]
[1721674954750,2.87555,3477.6,3477.1,3.01991]
[1721674955051,2.8757,3477.5,3477.1,0.144]
[1721674955353,6.1366498,3477.8,3477.1,0.144]
[1721674955658,2.8756,3477.6,3477.1,3.01995]
[1721674956471,2.8756,3477.6,3477.1,0.144]
[1721674956645,2.87572,3477.4,3477.1,0.144]
[1721674957464,2.87563,3477.5,3477.1,0.144]
[1721674957978,2.87583,3477.3,3477.1,0.144]
[1721674959557,3.7766595,3477.5,3477.1,0.144]
[1721674959769,2.87562,3477.5,3477.1,0.144]
[1721674959966,2.87564,3477.5,3477.1,0.144]
[1721674960971,5.75134,3477.5,3477.1,0.144]
[1721674961136,2.87564,3477.5,3477.1,0.144]
[1721674961636,5.75174,3477.2,3477.1,0.144]
[1721674962006,17.17394398,3477.2,3477.1,0.144]
[1721674962268,8.6286,3476.8,3476.7,7.4]
[1721674962478,11.33782398,3476.8,3476.7,7.4]
[1721674962630,14.88782398,3476.8,3476.7,7.4]
[1721674963922,17.37992398,3476.8,3476.7,7.4]
[1721674964079,2.87709,3475.8,3475.0,2.87764]
[1721674964280,2.87716,3475.7,3475.0,2.87764]
[1721674964483,2.87716,3475.7,3475.2,2.87747]
[1721674964709,2.87715,3475.7,3475.2,2.87746]
[1721674965020,2.87665,3476.3,3474.8,2.4151]
[1721674965021,2.87729,3475.5,3474.9,2.87776]
[1721674965242,2.87728,3475.5,3474.9,2.87776]
[1721674965438,2.87736,3475.4,3474.8,2.4151]
[1721674965724,5.37239,3476.0,3474.8,2.4151]
[1721674965725,2.87745,3475.3,3474.8,2.4151]
[1721674966522,2.87757,3475.2,3474.6,2.87795]
[1721674966829,2.87746,3475.3,3474.7,2.87794]
[1721674967122,2.87735,3475.5,3474.8,2.87785]
[1721674967328,2.87735,3475.5,3474.9,2.87773]
[1721674967715,2.87735,3475.5,3474.9,2.87772]
[1721674968329,5.75471,3475.5,3474.9,2.87772]
[1721674968551,2.87739,3475.4,3474.9,2.87772]
[1721674969027,3.537239,3475.9,3475.0,2.87763]
[1721674969028,2.87715,3475.7,3475.0,2.87763]
[1721674969242,6.42724,3475.6,3475.0,2.87763]
[1721674969599,6.42724,3475.6,3475.1,2.8776]
[1721674969600,3.0,3475.6,3475.1,2.8776]
[1721674970008,5.87721,3475.6,3475.1,2.8776]
[1721674971531,3.0,3475.6,3475.3,2.87744]
[1721674971733,3.9379949,3475.8,3475.3,2.87744]
[1721674971734,2.87672,3476.2,3475.6,2.87716]
[1721674971904,2.87672,3476.2,3475.4,2.8773]
[1721674972101,2.87683,3476.1,3475.5,2.87728]
[1721674972329,2.87683,3476.1,3475.5,5.75444]
[1721674972602,2.87683,3476.1,3475.5,2.87722]
[1721674972803,2.87693,3476.0,3475.4,2.87734]
[1721674973251,2.87696,3475.9,3475.4,2.87734]
[1721674973605,3.752246,3476.0,3475.4,2.87731]
[1721674974325,0.875376,3476.0,3475.5,2.87722]
[1721674974517,2.87672,3476.2,3475.6,2.87715]
[1721674974703,5.87679,3476.1,3475.6,2.87715]
[1721674974914,2.87693,3476.0,3475.4,2.87736]
[1721674975225,2.877,3475.9,3475.4,2.87732]
[1721674975552,2.87688,3476.0,3475.4,2.87729]
[1721674975753,2.87688,3476.0,3475.5,2.87723]
[1721674975961,2.87677,3476.2,3475.6,2.87719]
[1721674976112,3.0,3476.1,3475.6,2.87719]
[1721674976319,5.87681,3476.1,3475.6,2.87719]
[1721674976765,3.0,3476.1,3475.6,2.87719]
[1721674977051,5.87679,3476.1,3475.6,2.87719]
[1721674977225,5.75364,3476.1,3475.6,2.87719]
[1721674977431,3.0,3476.2,3475.5,2.87721]
[1721674977432,2.87687,3476.0,3475.5,2.87721]
[1721674977756,5.87678,3476.2,3475.6,2.87719]
[1721674978355,2.87679,3476.1,3475.6,2.87719]
[1721674978948,2.87687,3476.0,3475.5,2.87728]
[1721674979319,3.0,3476.2,3475.6,2.87718]
[1721674979520,3.0,3476.2,3475.7,2.8771]
[1721674979721,5.8767,3476.2,3475.7,2.8771]
[1721674980036,5.8767,3476.2,3475.5,5.75448]
[1721674980037,2.87678,3476.1,3475.5,5.75448]
[1721674980343,2.87678,3476.1,3475.6,2.87719]
[1721674980740,5.8767,3476.2,3475.1,2.4713]
[1721674980953,5.8767,3476.2,3475.6,2.87713]
[1721674981156,2.8768,3476.1,3475.6,2.87713]
[1721674981364,2.8768,3476.1,3475.2,3.412357]
[1721674981676,2.87687,3476.0,3475.5,2.87728]
[1721674982120,2.87678,3476.1,3475.6,2.87719]
[1721674982765,2.87687,3476.0,3475.5,2.87728]
[1721674983876,2.87679,3476.1,3475.5,2.87724]
[1721674984031,2.87679,3476.1,3475.2,0.534897]
[1721674984032,2.87687,3476.0,3475.3,2.87739]
[1721674984233,2.87687,3476.0,3475.5,2.87723]
[1721674985259,2.87697,3475.9,3475.3,3.4657467]
[1721674985466,2.87697,3475.9,3475.4,2.87732]
[1721674985969,2.87697,3475.9,3475.3,0.5883867]
[1721674986168,2.87697,3475.9,3475.5,2.87728]
[1721674986531,5.75398,3475.9,3475.3,3.4658267]
[1721674986735,2.87705,3475.8,3475.3,3.4657867]
[1721674986940,2.87705,3475.8,3475.3,3.4657767]
[1721674987227,2.87695,3475.9,3475.3,3.4657767]
[1721674987538,2.87695,3475.9,3475.4,2.87731]
[1721674988593,2.87695,3475.9,3475.1,2.4713]
[1721674988594,2.87716,3475.7,3475.1,2.4713]
[1721674988772,2.87716,3475.7,3475.1,5.34886]
[1721674989542,2.87716,3475.7,3475.2,2.87752]
[1721674989838,2.87717,3475.7,3475.2,2.87752]
[1721674990753,5.75435,3475.7,3475.2,2.87752]
[1721674991092,2.87717,3475.7,3475.2,2.87752]
[1721674992076,2.8772,3475.6,3475.1,2.4713]
[1721674992446,2.8772,3475.6,3475.1,5.34887]
[1721674992790,2.87712,3475.7,3475.2,2.87751]
[1721674993158,2.87712,3475.7,3475.1,2.4713]
[1721674993359,2.87729,3475.5,3475.1,2.4713]
[1721674993759,2.8772,3475.6,3475.1,5.3489]
[1721674995560,2.87703,3475.8,3475.2,2.87751]
[1721674995763,2.87703,3475.8,3475.3,2.87741]
[1721674996762,2.87712,3475.7,3475.3,2.87744]
[1721674997088,2.87712,3475.7,3475.2,2.87753]
[1721674997299,2.87724,3475.6,3475.1,2.4713]
[1721674997497,2.87712,3475.7,3475.0,2.87769]
[1721674997498,2.87733,3475.5,3475.0,2.87769]
[1721674998400,2.87733,3475.5,3475.0,2.87764]
[1721674998620,2.8772,3475.6,3475.1,2.87759]
[1721674998958,2.87728,3475.5,3475.0,2.87762]
[1721674999404,2.8772,3475.6,3475.1,2.87761]
[1721674999604,2.877,3475.9,3474.9,7.4]
[1721674999605,2.877,3475.9,3475.2,5.75499]
[1721674999760,2.87708,3475.8,3475.3,2.8774]
[1721675000095,0.5313,3475.9,3475.4,2.87732]
[1721675000399,2.87709,3475.8,3475.3,2.87744]
[1721675000575,2.87713,3475.7,3475.2,2.87752]
[1721675002196,6.2853,3475.9,3475.3,2.87737]
[1721675002395,3.40829,3475.9,3475.3,2.87737]
[1721675002600,5.8769,3476.0,3475.5,2.87723]
[1721675002777,3.0,3476.0,3475.7,2.87706]
[1721675002973,2.87675,3476.2,3475.7,2.87706]
[1721675002974,3.0,3476.1,3475.7,2.87706]
[1721675003501,3.0,3476.1,3475.6,2.87719]
[1721675003502,5.87679,3476.1,3475.6,2.87719]
[1721675003671,2.87691,3476.0,3475.5,2.87728]
[1721675004563,2.877,3475.9,3475.4,5.20076]
[1721675004938,5.87678,3476.1,3475.5,2.87722]
[1721675005271,5.87678,3476.1,3475.4,2.3234]
[1721675005472,2.87691,3476.0,3475.5,2.87726]
[1721675006128,2.87691,3476.0,3475.4,2.3234]
[1721675006414,2.87695,3475.9,3475.4,5.20072]
[1721675006912,2.8769,3476.0,3475.5,2.87726]
[1721675007221,2.87696,3475.9,3475.5,2.87726]
[1721675007422,5.87679,3476.1,3475.5,2.87726]
[1721675007588,5.87679,3476.1,3475.5,2.87723]
[1721675007589,0.14641086,3476.0,3475.5,2.87723]
[1721675007788,2.87687,3476.0,3475.5,2.87723]
[1721675007984,2.436,3476.4,3475.5,0.807803]
[1721675008189,2.63900227,3477.1,3475.5,0.807803]
[1721675008190,2.87618,3476.9,3476.1,2.3234]
[1721675008433,0.14637481,3476.8,3476.2,0.05753259]
[1721675008684,0.14637481,3476.8,3476.1,2.3234]
[1721675008685,2.87586,3477.3,3476.5,2.87642]
[1721675008838,2.436,3477.5,3476.1,5.20015]
[1721675008839,2.87598,3477.1,3476.1,5.20015]
[1721675009138,2.87598,3477.1,3475.7,2.3234]
[1721675009139,2.87654,3476.4,3475.7,2.3234]
[1721675009292,2.87654,3476.4,3475.9,2.87695]
[1721675009727,2.87625,3476.8,3476.1,2.87671]
[1721675010045,2.87652,3476.5,3475.9,2.87691]
[1721675010402,2.87652,3476.5,3475.9,5.75379]
[1721675010628,2.87652,3476.5,3475.9,2.87688]
[1721675011234,2.87652,3476.5,3475.8,2.87701]
[1721675011531,2.87652,3476.5,3475.5,5.75446]
[1721675011532,2.87684,3476.1,3475.5,5.75446]
[1721675011828,2.87671,3476.2,3475.7,2.8771]
[1721675011997,0.342652,3476.4,3475.3,7.4]
[1721675012199,3.0,3476.3,3476.0,2.8768]
[1721675012547,5.87643,3476.6,3476.1,2.87677]
[1721675012839,0.55,3476.5,3476.1,2.87677]
[1721675013195,3.0,3476.7,3475.8,2.4323]
[1721675013420,0.8875066,3477.0,3476.4,2.87649]
[1721675013421,3.0,3476.8,3476.4,2.87649]
[1721675013639,0.531186,3477.2,3476.7,2.87622]
[1721675013826,0.14636568,3477.1,3476.4,2.4323]
[1721675014031,5.17337,3477.6,3476.8,2.87616]
[1721675014257,0.14634962,3477.5,3477.0,2.876]
[1721675014533,2.87562,3477.5,3477.0,2.876]
[1721675014737,2.87563,3477.5,3477.0,2.87596]
[1721675014903,0.287563,3477.4,3476.9,2.87612]
[1721675015404,3.287563,3477.4,3476.9,2.87612]
[1721675015599,0.287563,3477.4,3477.0,2.87602]
[1721675015852,3.287563,3477.4,3477.0,2.87602]
[1721675016043,3.287563,3477.4,3476.8,5.7523]
[1721675016245,3.287563,3477.4,3476.9,2.8761]
[1721675016546,3.0,3477.4,3476.6,2.87631]
[1721675016718,2.87542,3477.8,3476.7,2.87627]
[1721675016901,2.87542,3477.8,3477.2,2.87583]
[1721675017301,2.87542,3477.8,3477.3,2.87574]
[1721675017925,3.0,3477.7,3477.3,2.87574]
[1721675018313,3.0,3477.7,3477.4,2.8757]
[1721675018520,5.2978,3477.9,3477.4,2.8757]
[1721675018841,0.817302,3477.8,3477.4,2.8757]
[1721675019042,0.817302,3477.8,3477.2,2.87583]
[1721675019043,6.692682,3477.8,3477.2,2.87581]
[1721675019210,3.817302,3477.8,3477.2,2.87581]
[1721675019399,6.692682,3477.8,3477.3,2.87574]
[1721675019998,6.692682,3477.8,3477.4,2.87567]
[1721675019999,3.817302,3477.8,3477.4,2.87567]
[1721675020228,0.817302,3477.8,3477.6,2.87549]
[1721675020548,2.87509,3478.2,3477.6,5.75098]
[1721675020705,2.87509,3478.2,3477.6,2.87549]
[1721675021235,5.7502,3478.2,3477.6,2.87549]
[1721675021417,0.57502,3478.1,3477.6,2.87549]
[1721675022047,2.87523,3478.0,3477.4,2.87566]
[1721675022261,2.87523,3478.0,3477.4,2.87564]
[1721675022262,3.0,3477.9,3477.4,2.87564]
[1721675022924,2.87548,3477.7,3477.2,2.87581]
[1721675023856,5.8753,3477.9,3477.3,2.87573]
[1721675024076,2.87554,3477.6,3477.0,2.3213]
[1721675024370,2.87548,3477.7,3477.1,2.87594]
[1721675024748,2.87554,3477.6,3477.1,2.87594]
[1721675025472,2.87576,3477.4,3476.9,7.4]
[1721675025675,2.87579,3477.3,3476.6,2.2867]
[1721675025895,2.87579,3477.3,3476.8,2.8762]
[1721675026036,2.87579,3477.3,3476.8,5.75234]
[1721675026232,2.87579,3477.3,3476.8,5.75229]
[1721675026432,2.87579,3477.3,3476.8,2.87614]
[1721675027281,2.87571,3477.4,3476.9,2.87612]
[1721675027638,3.0,3477.5,3477.0,2.87598]
[1721675027935,2.8755,3477.7,3477.2,2.87582]
[1721675027936,3.0,3477.6,3477.2,2.87582]
[1721675030160,3.0,3477.6,3477.2,5.75162]
[1721675030364,3.0,3477.7,3477.2,2.8758]
[1721675031088,3.0,3477.7,3477.3,2.87577]
[1721675031238,5.87542,3477.8,3477.3,2.87577]
[1721675031442,6.400276,3477.8,3477.3,2.87577]
[1721675031838,2.87546,3477.7,3477.2,2.87587]
[1721675032143,3.0,3477.6,3477.3,2.87578]
[1721675032499,6.400286,3477.8,3477.3,2.87578]
[1721675032878,1.1648706,3477.7,3477.3,2.87578]
[1721675033588,1.1648706,3477.7,3477.4,2.87568]
[1721675033883,3.0,3477.8,3477.5,2.87558]
[1721675034057,3.0,3477.9,3477.5,2.87558]
[1721675034378,3.875035,3477.9,3477.5,2.87558]
[1721675034584,2.87509,3478.2,3477.4,2.87566]
[1721675034743,2.87502,3478.3,3477.7,2.87541]
[1721675034939,2.87502,3478.3,3477.8,2.87537]
[1721675035341,2.87502,3478.3,3477.8,2.87532]
[1721675035544,2.3825,3478.4,3477.8,2.87532]
[1721675035744,2.3825,3478.8,3478.2,2.87499]
[1721675035976,5.2571,3478.8,3478.2,2.87499]
[1721675036164,5.2571,3478.8,3478.2,5.74999]
[1721675036366,5.2571,3478.8,3478.2,2.87499]
[1721675036757,2.87449,3478.9,3478.3,2.87496]
[1721675036994,2.3825,3479.1,3478.5,2.87475]
[1721675037279,2.8743,3479.2,3478.5,2.87473]
[1721675037483,2.8743,3479.2,3478.7,2.87461]
[1721675038099,5.25658,3479.4,3478.7,2.87461]
[1721675038263,2.3825,3479.7,3478.9,2.87446]
[1721675038595,2.3825,3479.7,3479.1,2.8743]
[1721675038831,2.87381,3479.7,3479.1,2.87427]
[1721675039027,2.87359,3480.0,3479.2,2.8742]
[1721675039227,2.87377,3479.8,3479.2,2.8742]
[1721675039428,3.448506,3479.8,3479.2,2.8742]
[1721675040229,3.0,3479.7,3479.2,2.8742]
[1721675040656,2.87393,3479.6,3479.0,2.87438]
[1721675040930,3.0,3479.5,3479.1,2.8743]
[1721675041143,3.0,3479.5,3479.3,2.87412]
[1721675041299,3.0,3479.9,3479.3,2.87406]
[1721675041492,0.55,3479.8,3479.3,2.87406]
[1721675041808,3.0,3479.9,3479.4,2.87405]
[1721675042031,2.4598,3480.6,3479.4,2.87405]
[1721675042223,2.4598,3480.6,3479.1,2.2756]
[1721675042224,2.87337,3480.3,3479.7,2.87376]
[1721675042400,2.87343,3480.2,3479.7,2.87376]
[1721675042610,2.87333,3480.3,3479.8,2.87372]
[1721675042923,2.4598,3480.6,3479.9,2.87364]
[1721675043121,2.4598,3480.6,3479.7,2.87374]
[1721675043122,2.87325,3480.4,3479.7,2.87374]
[1721675043433,2.87325,3480.4,3479.8,5.74734]
[1721675043635,2.87325,3480.4,3479.8,2.87365]
[1721675044552,5.87333,3480.3,3479.8,2.87365]
[1721675045126,5.87333,3480.3,3479.7,2.8738]
[1721675045361,5.87333,3480.3,3479.1,2.2756]
[1721675045362,2.87353,3480.1,3479.5,2.87393]
[1721675045657,3.0,3480.0,3479.5,2.87393]
[1721675045827,3.0,3480.0,3479.5,2.8739]
[1721675046160,2.87366,3479.9,3479.1,2.2756]
[1721675046453,2.87385,3479.7,3479.1,5.14989]
[1721675047431,2.87385,3479.7,3479.1,5.14984]
[1721675048541,3.0,3479.8,3479.1,2.2756]
[1721675048720,3.0,3479.8,3479.3,2.87412]
[1721675049141,3.0,3479.8,3479.2,0.96756]
[1721675049142,5.8738,3479.8,3479.2,3.84178]